Cogmind - Beta 9.6 @@@ ROGUE MODE // 2020.09.06 @ 16:09:03 Player: Finestep Result: Destroyed by G-34 Mercenary with Small Laser Performance ------------- Evolutions (0) 0 Regions Visited (3) 600 Robots Destroyed (47) 235 Value Destroyed (895) 895 Prototype IDs (22) 440 Alien Tech Used (0) 0 Bonus (300) 300 TOTAL SCORE: 2470 Bonus ------- Aligned with FarCom 300 Cogmind --------- Core Integrity 0/250 Matter 230/300 Energy 125/125 System Corruption 4% Temperature Cool (6) Movement Treading (160) Location -10/Exiles Parts ------- > --- POWER (1) -------- Light Ion Engine > --- PROPULSION (2) --- Light Treads Light Treads > --- UTILITY (2) ------ Large Storage Unit Large Storage Unit > --- WEAPON (2) ------- Light Assault Rifle Rocket Launcher > --- INVENTORY (16) --- Light Ion Engine Light Fission Core Light Treads Improved Heat Sink Medium Storage Unit Hacking Suite Hacking Suite Light Assault Rifle Light Assault Rifle Light Assault Rifle Light Assault Rifle Datajack Mining Laser Peak State ------------ > --- POWER ------------ Light Ion Engine > --- PROPULSION ------- Light Treads Light Treads > --- UTILITY ---------- Large Storage Unit Large Storage Unit > --- WEAPON ----------- Light Assault Rifle Rocket Launcher > --- INVENTORY -------- Light Ion Engine Light Fission Core Light Treads Improved Heat Sink Medium Storage Unit Hacking Suite Hacking Suite Light Assault Rifle Light Assault Rifle Light Assault Rifle Light Assault Rifle Datajack Mining Laser [Rating: 10] Favorites ----------- Power Light Ion Engine Engine Light Ion Engine Propulsion Light Treads Treads Light Treads Utility Medium Storage Unit Storage Medium Storage Unit Weapon Light Assault Rifle Energy Gun Small Laser Ballistic Gun Light Assault Rifle Launcher Rocket Launcher Special Weapon Mining Laser Build | -11 -10 -10 -10 ------- Run | Scr Mat Min Exi Slots Evolved . | . . . . Power . | . . . . Propulsion . | . . . . Utility . | . . . . Weapon . | . . . . Parts Attached 36 | 7 19 7 3 Power 5 | 1 2 2 . Engine 5 | 1 2 2 . Core . | . . . . Reactor . | . . . . Propulsion 7 | 2 4 1 . Treads 7 | 2 4 1 . Leg . | . . . . Wheel . | . . . . Hover . | . . . . Flight . | . . . . Utility 6 | 2 2 . 2 Device . | . . . . Storage 6 | 2 2 . 2 Processor . | . . . . Hackware . | . . . . Protection . | . . . . Artifact . | . . . . Weapon 18 | 2 11 4 1 Energy Gun 3 | 1 2 . . Energy Cannon . | . . . . Ballistic Gun 12 | 1 7 4 . Ballistic Cannon . | . . . . Launcher 1 | . . . 1 Special Weapon 2 | . 2 . . Impact Weapon . | . . . . Slashing Weapon . | . . . . Piercing Weapon . | . . . . Special Melee Weapon . | . . . . Unidentified Prototypes . | . . . . Parts Lost 8 | . 5 3 . Power 2 | . 1 1 . Propulsion 1 | . 1 . . Utility . | . . . . Weapon 5 | . 3 2 . Highest Loss Streak 2 | . 2 2 . Average Slot Usage (%) 96 | . 99 89 100 Engine 11 | . 13 4 14 Treads 27 | . 27 28 28 Storage 28 | . 28 28 28 Energy Gun 2 | . 4 . . Ballistic Gun 25 | . 23 27 27 Naked Turns . | . . . . Heaviest Build 37 | 13 24 24 37 Greatest Support 40 | 40 40 40 40 Greatest Overweight (x) 1 | . 1 . . Average Overweight (x) . | . . . . Largest Inventory Capacity 16 | 8 12 12 16 Average Capacity 10 | 6 9 12 12 Most Carried 13 | 4 12 12 13 Average Carried 9 | 2 8 11 12 Final Capacity 16 | 8 12 12 16 Final Carried 13 | 4 12 12 13 Class Distribution -------------------- 86% | Mutant 13% | Scavenger-Mutant Dominant Class ---------------- Mutant | -10/Materials Mutant | -10/Mines Scavenger-Mutant | -10/Exiles Resources | -11 -10 -10 -10 ----------- Run | Scr Mat Min Exi Matter Collected 998 | 276 528 194 . Remotely . | . . . . Salvage Created 1531 | 119 1010 369 33 Parts 106 | 8 78 17 3 Haulers Intercepted 2 | . 2 . . Recyclers Shooed 2 | . 1 1 . Parts Field Recycled . | . . . . Retrieved Matter . | . . . . Parts Self-Destructed . | . . . . Prevented . | . . . . Kills | -11 -10 -10 -10 ------- Run | Scr Mat Min Exi Combat Hostiles Destroyed 29 | . 21 7 1 Guns 28 | . 21 7 . AOE 1 | . . . 1 Classes Destroyed 9 | 2 7 . . Worker 4 | . 3 1 . Builder 2 | . 2 . . Tunneler 3 | 2 . 1 . Hauler 2 | . 2 . . Recycler 3 | 1 1 1 . Operator 2 | . 2 . . Watcher 2 | . 2 . . Swarmer 11 | . 8 3 . Grunt 18 | . 13 4 1 Best Kill Streak 7 | 3 7 4 1 Combat Bots Only 7 | . 7 3 1 Max Kills in Single Turn 2 | 1 2 1 1 Gunslinging 1 | . 1 . . Exploded 1 | . . . 1 Melee . | . . . . Uniques/NPCs Destroyed . | . . . . Combat | -11 -10 -10 -10 -------- Run | Scr Mat Min Exi Damage Taken 1663 | . 952 586 125 Core 252 | . 78 126 48 Absorbed by Shields . | . . . . Core Remaining (%) 100 | 100 . . . Volleys Fired 183 | 6 125 50 2 Largest 2 | 2 2 2 1 Hottest 100 | 60 100 40 33 Shots Fired 355 | 12 244 97 2 Gun 351 | 12 242 97 . Cannon . | . . . . Launcher 2 | . . . 2 Special 2 | . 2 . . Kinetic 297 | 6 194 97 . Thermal 56 | 6 50 . . Explosive 2 | . . . 2 Electromagnetic . | . . . . Robot Hit Streak 22 | 3 14 22 . Robot Miss Streak 5 | 1 5 3 . Penetration Max . | . . . . Secondary Targets 3 | . 1 2 . Max Gunslinging Chain 1 | . 1 1 . Shots Hit Robots 228 | 7 149 72 . Core Hits 93 | 5 61 26 1 Critical Hits 1 | . 1 . . Critical Kills 1 | . 1 . . Critical Parts Destroyed . | . . . . Melee Attacks . | . . . . Impact . | . . . . Slashing . | . . . . Piercing . | . . . . Sneak Attacks . | . . . . Combat Hostiles . | . . . . Follow-up Attacks . | . . . . Damage Inflicted 2349 | 68 1459 583 239 Guns 2110 | 68 1459 583 . Cannons . | . . . . Explosions 239 | . . . 239 Melee . | . . . . Ramming . | . . . . Kinetic 1803 | 34 1186 583 . Thermal 307 | 34 273 . . Explosive 239 | . . . 239 Electromagnetic . | . . . . Impact . | . . . . Slashing . | . . . . Piercing . | . . . . Highest Corruption 4 | . 4 4 4 Average Corruption 2 | . 2 4 4 Corruption Purged . | . . . . Effects 48 | . 26 14 8 Message Errors 11 | . 8 3 . Matter Fused 6 | . 2 2 2 Heat Flow Errors 7 | . 3 2 2 Energy Discharges 6 | . 2 2 2 Data Loss (minor) 6 | . 3 1 2 Targeting Errors 10 | . 7 3 . Weapon Failures 2 | . 1 1 . Overload Shots . | . . . . Overflow Damage . | . . . . Projectiles . | . . . . Explosions . | . . . . Melee . | . . . . Knockbacks . | . . . . Impact . | . . . . Kinetic . | . . . . Secondary . | . . . . Self-Inflicted Damage . | . . . . Shots . | . . . . Rammed . | . . . . Targets Rammed . | . . . . Kicked . | . . . . Crushed . | . . . . Highest Temperature 176 | 20 176 141 155 Average Temperature 37 | 15 37 24 78 Received Heat Transfer 630 | . 339 285 6 Siege Activations . | . . . . Robots Corrupted . | . . . . Combat Hostiles . | . . . . Parts Fried . | . . . . Impact Corruptions . | . . . . Robots Melted . | . . . . Combat Hostiles . | . . . . Parts Melted . | . . . . Heat Transferred 700 | 75 625 . . Parts Sabotaged . | . . . . Parts Stolen . | . . . . Parts Stripped . | . . . . Power Chain Reactions . | . . . . Missiles Intercepted . | . . . . Alert | -11 -10 -10 -10 ------- Run | Scr Mat Min Exi Peak Influence 215 | 15 215 141 . Average Influence 64 | 6 84 31 . Maximum Alert Level 1 | . 1 . . Low Security (%) 94 | 100 92 100 . Level 1 5 | . 7 . . Level 2 . | . . . . Level 3 . | . . . . Level 4 . | . . . . Level 5 . | . . . . High Security . | . . . . Max Security . | . . . . Squads Dispatched 4 | . 4 . . Investigation 2 | . 2 . . Extermination . | . . . . Reinforcement 2 | . 2 . . Assault . | . . . . Garrison . | . . . . Intercept . | . . . . Construction Impeded . | . . . . Haulers Reinforced . | . . . . Stealth | -11 -10 -10 -10 --------- Run | Scr Mat Min Exi Distress Signals 1 | . 1 . . Communications Jammed . | . . . . Distress Signals . | . . . . Times Spotted 55 | . 43 8 4 Peak Tracking Total 8 | . 8 3 5 Tactical Retreats 4 | . 3 1 . Traps | -11 -10 -10 -10 ------- Run | Scr Mat Min Exi Traps Triggered 6 | . 6 . . Indirectly . | . . . . Trap Hack Attempts . | . . . . Triggered . | . . . . Disarmed . | . . . . Reprogrammed . | . . . . Reused . | . . . . Traps Extracted . | . . . . Installed . | . . . . Triggered . | . . . . Machines | -11 -10 -10 -10 ---------- Run | Scr Mat Min Exi Machines Disabled . | . . . . Max in Single Turn . | . . . . Machines Sabotaged . | . . . . Garrisons Compromised . | . . . . Overloaded Fab Kills . | . . . . Fab Network Shutdowns . | . . . . Hacking | -11 -10 -10 -10 --------- Run | Scr Mat Min Exi Machines Accessed 11 | . 9 1 1 Terminals 7 | . 6 1 . Fabricators . | . . . . Repair Stations 1 | . 1 . . Recycling Units 2 | . 2 . . Scanalyzers . | . . . . Garrison Access . | . . . . Total Hacks 33 | . 28 4 1 Successful 17 | . 14 2 1 Failed 16 | . 14 2 . Catastrophic . | . . . . Database Lockouts . | . . . . Manual 23 | . 17 5 1 Terminals 23 | . 19 4 . Fabricators . | . . . . Repair Stations 5 | . 5 . . Recycling Units 4 | . 4 . . Scanalyzers . | . . . . Garrison Access . | . . . . Terminal Hacks 8 | . 5 2 1 Robot Schematic 1 | . 1 . . Robot Analysis 2 | . . 2 . Unreport Threat 1 | . 1 . . Hauler Manifests 1 | . 1 . . Zone Layout 2 | . 2 . . EX-Prototype ID Bank 1 | . . . 1 Fabricator Hacks . | . . . . Repair Station Hacks 4 | . 4 . . Scan Component 2 | . 2 . . Repair 2 | . 2 . . Recycling Unit Hacks . | . . . . Scanalyzer . | . . . . Garrison Access Hacks . | . . . . Unauthorized Hacks 5 | . 5 . . Terminals 2 | . 2 . . Track 2 | . 2 . . Fabricators . | . . . . Repair Stations . | . . . . Recycling Units 3 | . 3 . . Reject 1 | . 1 . . Mask 1 | . 1 . . Tunnel 1 | . 1 . . Scanalyzers . | . . . . Garrison Access . | . . . . Data Cores Recovered . | . . . . Used . | . . . . Hacking Detections 9 | . 8 1 . Full Trace Events . | . . . . Feedback Events . | . . . . Feedback Blocked . | . . . . Robot Schematics Acquired 1 | . 1 . . Robots Built . | . . . . Matter . | . . . . Time . | . . . . Total Robot Build Rating . | . . . . Part Schematics Acquired . | . . . . Parts Built . | . . . . Matter . | . . . . Time . | . . . . Total Part Build Rating . | . . . . Parts Repaired 2 | . 2 . . Time 52 | . 52 . . Parts Recycled . | . . . . Recycled Matter . | . . . . Retrieved Matter . | . . . . Retrieved Components . | . . . . Parts Scanalyzed . | . . . . Part Schematics Acquired . | . . . . Parts Damaged . | . . . . Bothacking | -11 -10 -10 -10 ------------ Run | Scr Mat Min Exi Used RIF Installer . | . . . . Robots Hacked . | . . . . Non-combat . | . . . . Combat . | . . . . Robot Hacks Applied . | . . . . Relay Couplers Released . | . . . . Robots Rewired . | . . . . Allies Hacked . | . . . . Hacks Repelled . | . . . . Allies | -11 -10 -10 -10 -------- Run | Scr Mat Min Exi Total Allies . | . . . . Largest Group . | . . . . Highest-Rated Group . | . . . . Highest-Rated Ally . | . . . . Total Orders . | . . . . Ally Attacks . | . . . . Total Damage . | . . . . Kills . | . . . . Allies Corrupted . | . . . . Allies Melted . | . . . . Intel | -11 -10 -10 -10 ------- Run | Scr Mat Min Exi Robot Analysis Total 2 | . . 2 . Derelict Logs Recovered 3 | . . 3 . Drone Launches . | . . . . Drone Recoveries . | . . . . Exploration | -11 -10 -10 -10 ------------- Run | Scr Mat Min Exi Turns Passed 3260 | 123 1913 891 333 Spaces Moved 1637 | 61 905 468 203 Core 4 | 4 . . . Treads 1633 | 57 905 468 203 Legs . | . . . . Wheels . | . . . . Hover . | . . . . Flight . | . . . . Fastest Speed 50 | 50 160 160 160 Average Speed 159 | 152 160 160 160 Slowest Speed 180 | 160 180 160 160 Overloaded Moves . | . . . . Propulsion Burnouts . | . . . . Robots Hopped . | . . . . Cave-ins Triggered . | . . . . Exploration Rate (%) 57 | 5 96 79 48 Regions Visited 3 Branch Regions 2 Pre-discovered Areas 3 | . 1 2 . Known Exits Taken . | . . . . Unknown Exits Taken 3 | 1 1 1 . Scrap Searched 1 | . . 1 . Spaces Dug 2 | . 2 . . Terrain Destroyed 2 | . 2 . . Melee . | . . . . Projectile 2 | . 2 . . AOE . | . . . . Actions | -11 -10 -10 -10 --------- Run | Scr Mat Min Exi Total 1964 | 77 1143 533 211 Wait 72 | . 72 . . Move 1634 | 60 904 467 203 Hop . | . . . . Pick Up 25 | 4 16 4 1 Fast Attach 16 | 7 8 1 . Attach 8 | . 5 3 . Detach . | . . . . Swap 12 | . 6 3 3 Drop 14 | . 7 5 2 Fire 183 | 6 125 50 2 Melee . | . . . . Ram . | . . . . Kick . | . . . . Crush . | . . . . Escape Stasis . | . . . . Rewire . | . . . . Trap . | . . . . Miscellaneous . | . . . . Route ------- -11/Scrapyard -10/Materials (discovered 5 exits: [*Mat x3] / *Min x2) -10/Mines -10/Exiles History --------- Turn | Location | Event 7 | -11/Scrapyard | Discovered new exit (range 16) 124 | -11/Scrapyard | Entered Materials 276 | -10/Materials | Discovered new exit (range 14) 315 | -10/Materials | Build established: Mutant 699 | -10/Materials | Discovered new exit (range 16) 878 | -10/Materials | Discovered new exit (range 3) 1108 | -10/Materials | Destroyed 7 combat bots 1140 | -10/Materials | Discovered new exit (range 10) 1729 | -10/Materials | Discovered new exit (range 15) 1870 | -10/Materials | Repaired Lgt. Treads 1898 | -10/Materials | Repaired Lgt. Treads 2037 | -10/Materials | Entered Mines 2088 | -10/Mines | Core integrity fell below 50% 2200 | -10/Mines | Learned location of Zion (-7) 2233 | -10/Mines | Learned Materials emergency access door positions 2248 | -10/Mines | Received a Rocket Launcher from a helpful Derelict 2377 | -10/Mines | Deemed a non-threat by the Exiles lab entrance 2377 | -10/Mines | Discovered new exit (range 5) 2786 | -10/Mines | Core integrity fell below 20% 2928 | -10/Mines | Entered Exiles 2970 | -10/Exiles | Met 8R-AWN 2997 | -10/Exiles | Met EX-HEX 3045 | -10/Exiles | Met EX-BIN 3064 | -10/Exiles | Aligned with FarCom system 3066 | -10/Exiles | Given EX-Vault access code 3094 | -10/Exiles | Build established: Scavenger-Mutant 3103 | -10/Exiles | Opened EX-Vault 3140 | -10/Exiles | Warned to stay clear of 0b10 Research branches 3168 | -10/Exiles | Exiles lab attacked by MAIN.C 3261 | -10/Exiles | Destroyed by G-34 Mercenary with Small Laser Last Messages --------------- network. EX-BIN: And don't even think about spreading that code around. We're gonna change it right after you leave. Most certainly not to something like 1234 which I did last time as a little joke and some thief managed to sneak in here and steal a few of HEX's prototypes. 03168_ EXILES: Incoming Unaware force detected on approach from Mines. Prepare for evacuation. 03182_ 8R-AWN: "We've got company!" 03183_ System corrupted: Matter fused (-8). 03186_ 8R-AWN: "I'll cover you all, get out of here!" 03187_ EX-HEX collects data from the Assembled Analyzer. 03199_ System corrupted: Heat flow error (+162). 03203_ EXILES: Lab perimeter alert, evacuate immediately. 03218_ System corrupted: Heat flow error (+175). 03218_ Dropped Med. Storage Unit. 03252_ Penetrated by Slug. 03252_ Machine disabled. 03256_ System corrupted: Matter fused (-10). 03257_ Penetrated by Slug. 03259_ G-34 Mercenary destroyed. Map ----- +----------------------------------------------------+ | ????????????????????# """#????????????? | | ????????????????????#" "X" """"????????????? | | ????????????????????#" """ #????????????? | | ????????????????????#" """""""""#????????????? | | ???????????????????##" ###########????????????? | | ??????????????????##"" #??????????????????????? | | ?????????????????##"" #??????????????????????? | | ????????????????""""" ##?????????????????????? | | ??????????????"" " "" ##???###########??????? | | ??????????????"" " #####"""""""""##?????? | | ????????????? " " """ """"##????? | | ??????????? "" " #????? | | ??????????? " """#????? | | ???????????? " "#????? | | ???????????? " "##???? | | ???????????? ""###?? | | ????????????? """""" """#?? | | ????????????? ######""" "#?? | | ??????????????""#?????#####""" ##? | | ?????? ?????????????????##""" ## | | ?????? ????????????????#"""" # | | ?????? ??????????????##"" | | ????? #??#####??####"""" | | ????? ##aaa####""" g | | ???? "" g | | ???? @ [% | | ???? = # | | ???? ## | | ???? " " " ""#? | | ????? ""## ##""" " " "" "##? | | ????? ""#### ######""" """# """"""##?? | | ?????? """"#???# #????###""""###########??? | | ?????? """???## ####???######????????????? | | ?????? ""????#! "!#?????????????????????? | | ??????? "???????#" !#?????????????????????? | | ??????? ?? ????????#" "#?????????????????????? | | ????????????????????# !""!"#?????????????????????? | | ????????????????????########?????????????????????? | | ?????????????????????????????????????????????????? | | ?????????????????????????????????????????????????? | | ?????????????????????????????????????????????????? | | ?????????????????????????????????????????????????? | | ?????????????????????????????????????????????????? | | ?????????????????????????????????????????????????? | | ?????????????????????????????????????????????????? | | ?????????????????????????????????????????????????? | | ?????????????????????????????????????????????????? | | ?????????????????????????????????????????????????? | | ?????????????????????????????????????????????????? | | ?????????????????????????????????????????????????? | +----------------------------------------------------+ Best States ------------- Heat Dissipation 25 Energy Generation 10 Energy Capacity 250 Matter Stores 300 Matter Capacity 300 Sight Range 16 Terrain Scan Density 10 Evasion (%) 40 Recoil Reduction 2 Item Schematics ----------------- None Robot Schematics ------------------ M-13 Machinist | -10/Materials | Hacked Fabricated ------------ Nothing Alien Tech Used ----------------- None Achievements -------------- None Challenges ------------ None Game ------ Seed StasisSmallInverter Manual? 0 Play Time 00:14:05 Cumulative 451.8 hours Start 2020.09.06 @ 15:55:52 End 2020.09.06 @ 16:09:03 Sessions 1 Manual Loads 0 Difficulty Rogue Special Mode None Game No. 304 Rogue 304 Adventurer 0 Explorer 0 Win Type - Total 4 Types 4/0/0/0/0/0/0 Lore% 86 Gallery% 87 Achievement% 66 Wizard Run 0 Options --------- ASCII 0 Keyboard 0 Movement Mouse Keybinds 1 Fullscreen 2 Font 24/Smallcaps Map View 76x50 Tactical HUD 1 Map Filters NONE Filters NONE Steam 1 RUN: 97efe4f2-5ee5-4114-b20d-df518f96eeda